Workbook

Sheet Custo por trabalhador
A1: PLANILHA DE CUSTOS E FORMAÇÃO DE PREÇOS
A2: MODELO DE FORMAÇÃO DE CUSTO MENSAL PARA UM EMPREGADO
A3: * A planilha de custos e formação de preços é ferramenta de apoio à realização de estimativas da contratação e para a análise das propostas na fase de pregão e nas prorrogações contratuais. * O modelo disponibilizado na Instrução Normativa n° 5, de 26 de maio de 2017, é inspiracional, devendo ser adaptado pelo órgão ou entidade contratante às suas necessidades. * A presente proposta visa, tão somente, auxiliar aos órgão que não possuam um modelo definido na formatação dos cálculos de direitos trabalhistas para estimativas de contratos de prestação de serviços, observando as disposições da Consolidação das Leis do Trabalho - CLT e das Convenções Coletivas de Trabalho - CCT (sendo válidos, ainda, os acordos e dissídios coletivos). * É responsábilidade do usuário que optar pela utilização deste modelo a conferência das fórmulas automatizadas em conformidade com as dispoções de CLT e CCT, para minimizar o risco de equívocos no cômputo das previsões financeiras. * Dúvidas sobre a metodologia de cálculo poderão ser esclarecidas com a leitura dos Cadernos Técnicos de divulgação de valores limites em: https://www.comprasgovernamentais.gov.br/index.php/cadernos-tecnicos-e-valores-limites.
A5: MÓDULO 1 - REMUNERAÇÃO
A6: * A remuneração é definida no art. 457 da Consolidação das Leis do Trabalho. * É composta por Salário Base, Adicionais (noturno, de insalubridade ou periculosidade) e gratificações, quando houver.
A8: SALÁRIO BASE
A9: * O Salário Base vem definido na Convenção Coletiva de Trabalho da categoria profissional a ser contratada para o objeto da prestação de serviço. * O contratante deverá observar se a CCT abrange o município de prestação de serviço e se está vigente.
A11: SALÁRIO BASE
A12: Vigilante (12x36h e 44h) | B12: 0
A13: Supervisor | B13: 0
A15: GRATIFICAÇÃO DE FUNÇÃO
A16: * Gratificação de função, quando houver, virá informada na Convenção Coletiva de Trabalho da categoria profissional a ser contratada. * O órgão contrantante deverá observar, além da existência de gratificação, se esta incidirá sobre os adicionais, devendo adaptar a planilha ao caso em concreto. * Para o presente modelo foi considerada gratificação como percentual sobre o salário base e sem incidência sobre os adicionais (noturno, periculosidade ou insalubridade).
A18: GRATIFICAÇÃO DE FUNÇÃO
A19: Categoria | B19: Base de cálculo | C19: Percentual | D19: Valor da Gratificação
A20: =A12 -> Vigilante (12x36h e 44h) | B20: =B12 -> 0 | D20: =B20*C20 -> 0
A21: =A13 -> Supervisor | B21: =B13 -> 0 | D21: =B21*C21 -> 0
A23: ADICIONAIS (periculosidade ou insalubridade, se houver)
A24: * Os adicionais de periculosidade ou insalubridade, em conformidade com os art. 192 e 193 da CLT, dependem da natureza do serviço a ser prestado. * O órgão contrantante deverá observar, além da existência de previsão em CLT, se há informações na Convenção Coletiva de Trabalho acerca dos adicionais, bem como seu percentual e a base de cálculo, devendo adaptar a planilha ao caso em concreto.
A26: ADICIONAL DE PERICULOSIDADE
A27: Categoria | B27: Base de cálculo | C27: Percentual | D27: Valor
A28: Vigilante (12x36 Diurno) | B28: =B20 -> 0 | C28: 0.3 | D28: =B28*C28 -> 0
A29: vigilante (12x36 Noturno) | B29: =B20 -> 0 | C29: =C28 -> 0.3 | D29: 0
A30: Vigilante (44h semanais) | B30: =B20 -> 0 | C30: =C29 -> 0.3 | D30: 0
A31: - | C31: =C30 -> 0.3 | D31: 0
A32: - | C32: =C31 -> 0.3 | D32: 0
A33: Supervisor (44h semanais) | B33: =B21 -> 0 | C33: =C32 -> 0.3 | D33: 0
A36: ADICIONAL NOTURNO
A37: * O Adicional Noturno e a Hora Noturna Reduzida, conforme art. 73 da CLT, serão pagos entre 22h e 5h do dia seguinte, sem prorrogação quando da jornada 12x36h. * O órgão contrantante deverá observar, além da existência do previsto em CLT, se há informações na Convenção Coletiva de Trabalho acerca da existência do percentual de adicional noturno, bem como se haverá pagamento de hora noturna reduzida e adaptar a planilha ao caso em concreto.
A39: ADICIONAL NOTURNO
A40: Categoria | B40: Base de Cálculo | C40: Proporção | D40: Percentual | E40: Valor
A41: =A29 -> vigilante (12x36 Noturno) | B41: =B12+D29 -> 0 | C41: =7/12 -> 0.5833333333 | D41: 0.2 | E41: =B41*C41*D41 -> 0
A42: - | B42: 0 | C42: =7/12 -> 0.5833333333 | D42: 0 | E42: =B42*C42*D42 -> 0
A43: HORA NOTURNA REDUZIDA
A44: Categoria | B44: Base de Cálculo | C44: Proporção | D44: Percentual | E44: Valor
A45: =A29 -> vigilante (12x36 Noturno) | B45: =B12+D29 -> 0 | C45: =1/12 -> 0.08333333333 | D45: =1+D41 -> 1.2 | E45: =B45*C45*D45 -> 0
A46: - | B46: 0 | C46: =1/12 -> 0.08333333333 | D46: 0 | E46: =B46*C46*D46 -> 0
A48: ADICIONAL POR TRABALHO NOTURNO
A49: Categoria | B49: Adicional Noturno | C49: Hora Noturna Reduzida | D49: Valor
A50: =A29 -> vigilante (12x36 Noturno) | B50: =E41 -> 0 | C50: =E45 -> 0 | D50: =SUM(B50:C50) -> 0
A51: - | B51: =E42 -> 0 | C51: =E46 -> 0 | D51: =SUM(B51:C51) -> 0
A53: ADICIONAL XXX
A54: * Em caso de previsão de outros adicionais em Convenção Coletiva de Trabalho o órgão poderá utilizar este campo.
A56: ADICIONAL XXX
A57: Categoria | B57: Base de cálculo | C57: Percentual | D57: Valor
A58: Cargo A (12x36 Diurno)
A59: Cargo A (12x36 Noturno)
A60: Cargo A (44h semanais)
A61: Cargo B (12x36 Diurno)
A62: Cargo B (12x36 Noturno)
A63: Cargo B (44h semanais)
A65: MÓDULO 1 - REMUNERAÇÃO
A66: Este quadro totaliza a remuneração devida ao trabalhador, conforme previsão da Consolidação das Leis do Trabalho e valores disponíveis na Convenção Coletiva para a categoria
A68: MÓDULO 1 - REMUNERAÇÃO
A69: Categoria | B69: Salário Base | C69: Gratificação de função | D69: Adicional de Periculosidade ou Insalubridade | E69: Adicional Noturno | F69: Adicional XXX | G69: Total
A70: =A28 -> Vigilante (12x36 Diurno) | B70: =B12 -> 0 | C70: =D20 -> 0 | D70: =D28 -> 0 | F70: =D58 -> 0 | G70: =SUM(B70:F70) -> 0
A71: =A29 -> vigilante (12x36 Noturno) | B71: =B12 -> 0 | C71: =D20 -> 0 | D71: 0 | E71: =D50 -> 0 | F71: 0 | G71: =SUM(B71:F71) -> 0
A72: =A30 -> Vigilante (44h semanais) | B72: =B12 -> 0 | C72: =D20 -> 0 | D72: 0 | F72: 0 | G72: 0
A73: - | B73: 0 | C73: =D21 -> 0 | D73: 0 | F73: 0 | G73: 0
A74: - | B74: 0 | C74: =D21 -> 0 | D74: 0 | E74: =D51 -> 0 | F74: 0 | G74: 0
A75: =A33 -> Supervisor (44h semanais) | B75: =B13 -> 0 | C75: =D21 -> 0 | D75: 0 | F75: 0 | G75: 0
A77: MÓDULO 2 - ENCARGOS E BENEFÍCIOS (ANUAIS, MENSAIS E DIÁRIOS)
A79: SUBMÓDULO 2.1 – 13° SALÁRIO, FÉRIAS E ADICIONAL DE FÉRIAS
A81: 13° SALÁRIO Previsto no Decreto 57.155, de 1965.
A82: Categoria | B82: Base de cálculo | C82: Provisionamento Mensal | D82: Valor
A83: =A70 -> Vigilante (12x36 Diurno) | B83: =G70 -> 0 | C83: =1/12 -> 0.08333333333 | D83: =B83*C83 -> 0
A84: =A71 -> vigilante (12x36 Noturno) | B84: 0 | C84: =1/12 -> 0.08333333333 | D84: =B84*C84 -> 0
A85: =A72 -> Vigilante (44h semanais) | B85: 0 | C85: 0.08333333333 | D85: 0
A86: - | B86: 0 | C86: 0.08333333333 | D86: 0
A87: - | B87: 0 | C87: 0.08333333333 | D87: 0
A88: =A33 -> Supervisor (44h semanais) | B88: 0 | C88: 0.08333333333 | D88: 0
A90: FÉRIAS Previsto no art. 7° da Constituição Federal
A91: Categoria | B91: Base de cálculo | C91: Provisionamento Mensal | D91: Valor
A92: =A83 -> Vigilante (12x36 Diurno) | B92: =G70 -> 0 | C92: =1/12 -> 0.08333333333 | D92: =B92*C92 -> 0
A93: =A84 -> vigilante (12x36 Noturno) | B93: 0 | C93: =1/12 -> 0.08333333333 | D93: =B93*C93 -> 0
A94: =A85 -> Vigilante (44h semanais) | B94: 0 | C94: 0.08333333333 | D94: 0
A95: - | B95: 0 | C95: 0.08333333333 | D95: 0
A96: - | B96: 0 | C96: 0.08333333333 | D96: 0
A97: =A88 -> Supervisor (44h semanais) | B97: 0 | C97: 0.08333333333 | D97: 0
A99: ADICIONAL DE FÉRIAS - 1/3 CONSTITUCIONAL
A100: Categoria | B100: Base de cálculo | C100: Alíquota Adicional | D100: Provisionamento Mensal | E100: Valor
A101: =A92 -> Vigilante (12x36 Diurno) | B101: =G70 -> 0 | C101: =1/3 -> 0.3333333333 | D101: =1/12 -> 0.08333333333 | E101: =B101*C101*D101 -> 0
A102: =A93 -> vigilante (12x36 Noturno) | B102: 0 | C102: =1/3 -> 0.3333333333 | D102: =1/12 -> 0.08333333333 | E102: 0
A103: =A94 -> Vigilante (44h semanais) | B103: 0 | C103: 0.3333333333 | D103: 0.08333333333 | E103: 0
A104: - | B104: 0 | C104: 0.3333333333 | D104: 0.08333333333 | E104: 0
A105: - | B105: 0 | C105: 0.3333333333 | D105: 0.08333333333 | E105: 0
A106: =A97 -> Supervisor (44h semanais) | B106: 0 | C106: 0.3333333333 | D106: 0.08333333333 | E106: 0
A108: SUBMÓDULO 2.1 – 13° SALÁRIO, FÉRIAS E ADICIONAL DE FÉRIAS
A109: Categoria | B109: 13° Salário | C109: Férias | D109: 1/3 Constitucional | E109: Total
A110: =A101 -> Vigilante (12x36 Diurno) | B110: =D83 -> 0 | C110: =D92 -> 0 | D110: =E101 -> 0 | E110: =SUM(B110:D110) -> 0
A111: =A102 -> vigilante (12x36 Noturno) | B111: 0 | C111: 0 | D111: 0 | E111: 0
A112: =A103 -> Vigilante (44h semanais) | B112: 0 | C112: 0 | D112: 0 | E112: 0
A113: - | B113: 0 | C113: 0 | D113: 0 | E113: 0
A114: - | B114: 0 | C114: 0 | D114: 0 | E114: 0
A115: =A106 -> Supervisor (44h semanais) | B115: 0 | C115: 0 | D115: 0 | E115: 0
A117: SUBMÓDULO 2.2 - ENCARGOS PREVIDENCIÁRIOS E FGTS
A118: * Previsto no art. 195 da Constituição Federal. * Os percentuais informados não são taxativos e deverão observar o enquadramento real das empresas prestadoras de serviço, em especial no que diz respeito ao SAT-GIIL/RAT.
A120: COMPOSIÇÃO DO GPS E FGTS
A121: Encargos | B121: Percentual
A122: INSS - empregador | B122: 0.2
A123: Salário-Educação | B123: 0.025
A124: SAT- GIL/RAT | B124: 0.03
A125: SESC | B125: 0.015
A126: SENAC | B126: 0.01
A127: SEBRAE | B127: 0.006
A128: INCRA | B128: 0.002
A129: FGTS | B129: 0.08
A130: TOTAL | B130: =SUM(B122:B129) -> 0.368
A132: GPS - GUIA DA PREVIDÊNCIA SOCIAL
A133: Categoria | B133: Base de cálculo | C133: Percentual | D133: Valor
A134: =A92 -> Vigilante (12x36 Diurno) | B134: =G70+E110 -> 0 | C134: =SUM($B$122:$B$128) -> 0.288 | D134: =B134*C134 -> 0
A135: =A93 -> vigilante (12x36 Noturno) | B135: 0 | C135: =SUM($B$122:$B$128) -> 0.288 | D135: =B135*C135 -> 0
A136: =A94 -> Vigilante (44h semanais) | B136: 0 | C136: 0.288 | D136: 0
A137: - | B137: 0 | C137: 0.288 | D137: 0
A138: - | B138: 0 | C138: 0.288 | D138: 0
A139: =A97 -> Supervisor (44h semanais) | B139: 0 | C139: 0.288 | D139: 0
A141: FGTS - FUNDO DE GARANTIA POR TEMPO DE SERVIÇO
A142: Categoria | B142: Base de cálculo | C142: Percentual | D142: Valor
A143: =A101 -> Vigilante (12x36 Diurno) | B143: =G70+E110 -> 0 | C143: =$B$129 -> 0.08 | D143: =B143*C143 -> 0
A144: =A102 -> vigilante (12x36 Noturno) | B144: 0 | C144: =$B$129 -> 0.08 | D144: =B144*C144 -> 0
A145: =A103 -> Vigilante (44h semanais) | B145: 0 | C145: 0.08 | D145: 0
A146: - | B146: 0 | C146: 0.08 | D146: 0
A147: - | B147: 0 | C147: 0.08 | D147: 0
A148: =A106 -> Supervisor (44h semanais) | B148: 0 | C148: 0.08 | D148: 0
A150: SUBMÓDULO 2.2 - ENCARGOS PREVIDENCIÁRIOS E FGTS
A151: Categoria | B151: GPS | C151: FGTS | D151: Total
A152: =A110 -> Vigilante (12x36 Diurno) | B152: =D134 -> 0 | C152: =D143 -> 0 | D152: =B152+C152 -> 0
A153: =A111 -> vigilante (12x36 Noturno) | B153: =D135 -> 0 | C153: =D144 -> 0 | D153: =B153+C153 -> 0
A154: =A112 -> Vigilante (44h semanais) | B154: 0 | C154: 0 | D154: 0
A155: - | B155: 0 | C155: 0 | D155: 0
A156: - | B156: 0 | C156: 0 | D156: 0
A157: =A115 -> Supervisor (44h semanais) | B157: 0 | C157: 0 | D157: 0
A159: SUBMÓDULO 2.3 - BENEFÍCIOS MENSAIS E DIÁRIOS
A160: * O cálculo de benefícios mensais e diários dependerá das disposições constantes em Convenção Coletiva de Trabalho sobre os direitos negociados aos trabalhadores, observando sempre o custo efetivo a ser suportado pela Administração no contrato de prestação de serviços (descontados os valores arcados pelos empregados).
A162: VALE TRANSPORTE
A164: CUSTO DA PASSAGEM
A165: Categoria | B165: Vr. Unitário | C165: Vales por dia | D165: Dias efetivamente trabalhados | E165: Custo total
A166: Vigilante (12x36 Diurno) | B166: 0 | C166: 2 | D166: 15 | E166: =B166*C166*D166 -> 0
A167: Vigilante (12x36 Noturno) | B167: =B166 -> 0 | C167: =C166 -> 2 | D167: 15 | E167: 0
A168: Vigilante (44h semanais) | B168: =B167 -> 0 | C168: 2 | D168: 22 | E168: 0
A169: - | B169: 0 | C169: 2 | D169: 15 | E169: 0
A170: - | B170: =B169 -> 0 | C170: 2 | D170: 15 | E170: 0
A171: Supervisor (44h semanais) | B171: =B166 -> 0 | C171: 2 | D171: 22 | E171: 0
A173: DESCONTO DO VALE TRANSPORTE
A174: Categoria | B174: Base de cálculo | C174: Proporcionalidade | D174: Percentual | E174: Desconto
A175: Vigilante (12x36 Diurno) | B175: =B12 -> 0 | C175: 0.5 | D175: 0.06 | E175: =B175*C175*D175 -> 0
A176: Vigilante (12x36 Noturno) | B176: =B12 -> 0 | C176: 0.5 | D176: 0.06 | E176: 0
A177: Vigilante (44h semanais) | B177: =B12 -> 0 | C177: 1 | D177: 0.06 | E177: 0
A178: - | B178: 0 | C178: 0.5 | D178: 0.06 | E178: 0
A179: - | B179: 0 | C179: 0.5 | D179: 0.06 | E179: 0
A180: Supervisor (44h semanais) | B180: =B13 -> 0 | C180: 1 | D180: 0.06 | E180: 0
A182: CUSTO EFETIVO DO VALE TRANSPORTE
A183: Categoria | B183: Custo total | C183: Valor do desconto | D183: Custo efetivo
A184: Vigilante (12x36 Diurno) | B184: =E166 -> 0 | C184: =E175 -> 0 | D184: =B184-C184 -> 0
A185: Vigilante (12x36 Noturno) | B185: 0 | C185: 0 | D185: =B185-C185 -> 0
A186: Vigilante (44h semanais) | B186: 0 | C186: 0 | D186: 0
A187: - | B187: 0 | C187: 0 | D187: 0
A188: - | B188: 0 | C188: 0 | D188: 0
A189: Supervisor (44h semanais) | B189: 0 | C189: 0 | D189: 0
A191: VALE ALIMENTAÇÃO/REFEIÇÃO
A193: VALE ALIMENTAÇÃO/REFEIÇÃO
A194: Categoria | B194: Valor diário | C194: Dias efetivamente trabalhados | D194: Valor
A195: Vigilante (12x36 Diurno) | B195: 0 | C195: =D166 -> 15 | D195: =B195*C195 -> 0
A196: Vigilante (12x36 Noturno) | B196: =B195 -> 0 | C196: =D167 -> 15 | D196: =B196*C196 -> 0
A197: Vigilante (44h semanais) | B197: =B196 -> 0 | C197: 22 | D197: 0
A198: - | B198: 0 | C198: 15 | D198: 0
A199: - | B199: =B198 -> 0 | C199: 15 | D199: 0
A200: Supervisor (44h semanais) | B200: =B195 -> 0 | C200: 22 | D200: 0
A202: DESCONTO DO VALE ALIMENTAÇÃO/REFEIÇÃO
A203: Categoria | B203: Base de cálculo | C203: Percentual | D203: Desconto
A204: Vigilante (12x36 Diurno) | B204: =D195 -> 0 | D204: =B204*C204 -> 0
A205: Vigilante (12x36 Noturno) | B205: =D196 -> 0 | C205: =C204 -> 0 | D205: =B205*C205 -> 0
A206: Vigilante (44h semanais) | B206: 0 | C206: =C205 -> 0 | D206: 0
A207: - | B207: 0 | C207: =C206 -> 0 | D207: 0
A208: - | B208: 0 | C208: =C207 -> 0 | D208: 0
A209: Supervisor (44h semanais) | B209: 0 | C209: =C208 -> 0 | D209: 0
A211: CUSTO EFETIVO DO VALE ALIMENTAÇÃO/REFEIÇÃO
A212: Categoria | B212: Custo total | C212: Desconto | D212: Custo efetivo
A213: Vigilante (12x36 Diurno) | B213: =D195 -> 0 | C213: =D204 -> 0 | D213: =B213-C213 -> 0
A214: Vigilante (12x36 Noturno) | B214: =D196 -> 0 | C214: =D205 -> 0 | D214: =B214-C214 -> 0
A215: Vigilante (44h semanais) | B215: 0 | C215: 0 | D215: 0
A216: - | B216: 0 | C216: 0 | D216: 0
A217: - | B217: 0 | C217: 0 | D217: 0
A218: Supervisor (44h semanais) | B218: 0 | C218: 0 | D218: 0
A220: BENEFÍCIO MÉDICO/HOSPITALAR, SEGURO DE VIDA E APOSENTADORIA Utilizar este campo em caso de outros benefícios previstos em Convenção Coletiva, sempre especificando o tipo, finalidade e previsão legal do mesmo.
A222: BENEFÍCIO MÉDICO/HOSPITALAR E OUTROS
A223: Categoria | B223: Plano de Saúde | C223: Fundo social odontológico | D223: Fundo de indenização aposentadoria/invalidez | E223: Seguro de vida | G223: Total
A224: Vigilante (12x36 Diurno) | B224: 0 | C224: 0 | D224: 0 | E224: 0 | G224: =B224+C224+D224+E224 -> 0
A225: Vigilante (12x36 Noturno) | B225: =B224 -> 0 | C225: =C224 -> 0 | D225: =D224 -> 0 | E225: =E224 -> 0 | G225: =B225+C225+D225+E225 -> 0
A226: Vigilante (44h semanais) | B226: =B224 -> 0 | C226: =C224 -> 0 | D226: =D224 -> 0 | E226: =E224 -> 0 | G226: 0
A227: - | B227: 0 | C227: 0 | D227: 0 | E227: 0 | G227: 0
A228: - | B228: =B227 -> 0 | C228: 0 | D228: 0 | E228: 0 | G228: 0
A229: Supervisor (44h semanais) | B229: =B224 -> 0 | C229: =C224 -> 0 | D229: =D224 -> 0 | E229: =E224 -> 0 | G229: 0
A231: BENEFÍCIO YYY Utilizar este campo em caso de outros benefícios previstos em Convenção Coletiva, sempre especificando o tipo, finalidade e previsão legal do mesmo.
A233: BENEFÍCIO yyy
A234: Categoria
A235: Vigilante (12x36 Diurno)
A236: Vigilante (12x36 Noturno)
A237: Vigilante (44h semanais)
A238: -
A239: -
... 271 more rows

Sheet Planilha de Custos
A1: PLANILHA DE CUSTOS E FORMAÇÃO DE PREÇOS
A2: MODELO PARA A CONSOLIDAÇÃO E APRESENTAÇÃO DE PROPOSTAS
A3: Com ajustes após publicação da Lei n° 13.467, de 2017.
A6: Módulo 1 - Composição da Remuneração
A8: 1 | B8: Composição da Remuneração | C8: Valor (R$)
A9: A | B9: Salário-Base
A10: B | B10: Adicional de Periculosidade
A11: C | B11: Adicional de Insalubridade
A12: D | B12: Adicional Noturno
A13: E | B13: Adicional de Hora Noturna Reduzida
A15: G | B15: Outros (especificar)
A16: Total
A19: Módulo 2 - Encargos e Benefícios Anuais, Mensais e Diários
A21: Submódulo 2.1 - 13º (décimo terceiro) Salário, Férias e Adicional de Férias
A23: 2.1 | B23: 13º (décimo terceiro) Salário, Férias e Adicional de Férias | C23: Valor (R$)
A24: A | B24: 13º (décimo terceiro) Salário
A25: B | B25: Férias e Adicional de Férias
A26: Total
A29: Submódulo 2.2 - Encargos Previdenciários (GPS), Fundo de Garantia por Tempo de Serviço (FGTS) e outras contribuições.
A31: 2.2 | B31: GPS, FGTS e outras contribuições | C31: Percentual (%) | D31: Valor (R$)
A32: A | B32: INSS | C32: 0.2
A33: B | B33: Salário Educação | C33: 0.025
A34: C | B34: SAT
A35: D | B35: SESC ou SESI | C35: 0.015
A36: E | B36: SENAI - SENAC | C36: 0.01
A37: F | B37: SEBRAE | C37: 0.006
A38: G | B38: INCRA | C38: 0.002
A39: H | B39: FGTS | C39: 0.08
A40: Total
A43: Submódulo 2.3 - Benefícios Mensais e Diários.
A45: 2.3 | B45: Benefícios Mensais e Diários | C45: Valor (R$)
A46: A | B46: Transporte
A47: B | B47: Auxílio-Refeição/Alimentação
A48: C | B48: Benefício xxx
A49: D | B49: Outros (especificar)
A50: Total
A53: Quadro-Resumo do Módulo 2 - Encargos e Benefícios anuais, mensais e diários
A55: 2 | B55: Encargos e Benefícios Anuais, Mensais e Diários | C55: Valor (R$)
A56: 2.1 | B56: 13º (décimo terceiro) Salário, Férias e Adicional de Férias
A57: 2.2 | B57: GPS, FGTS e outras contribuições
A58: 2.3 | B58: Benefícios Mensais e Diários
A59: Total
A62: Módulo 3 - Provisão para Rescisão
A64: 3 | B64: Provisão para Rescisão | C64: Valor (R$)
A65: A | B65: Aviso Prévio Indenizado
A66: B | B66: Incidência do FGTS sobre o Aviso Prévio Indenizado
A67: C | B67: Multa do FGTS e contribuição social sobre o Aviso Prévio Indenizado
A68: D | B68: Aviso Prévio Trabalhado
A69: E | B69: Incidência dos encargos do submódulo 2.2 sobre o Aviso Prévio Trabalhado
A70: F | B70: Multa do FGTS e contribuição social sobre o Aviso Prévio Trabalhado
A71: Total
A74: Módulo 4 - Custo de Reposição do Profissional Ausente
A77: Submódulo 4.1 - Ausências Legais
A79: 4.1 | B79: Ausências Legais | C79: Valor (R$)
A80: A | B80: Férias
A81: B | B81: Ausências Legais
A82: C | B82: Licença-Paternidade
A83: D | B83: Ausência por acidente de trabalho
A84: E | B84: Afastamento Maternidade
A85: F | B85: Outros (especificar)
A86: Total
A89: Submódulo 4.2 - Intrajornada
A91: 4.2 | B91: Intrajornada | C91: Valor (R$)
A92: A | B92: Intervalo para repouso e alimentação
A93: Total
A96: Quadro-Resumo do Módulo 4 - Custo de Reposição do Profissional Ausente
A98: 4 | B98: Custo de Reposição do Profissional Ausente | C98: Valor (R$)
A99: 4.1 | B99: Ausências Legais
A100: 4.2 | B100: Intrajornada
A101: Total
A104: Módulo 5 - Insumos Diversos
A106: 5 | B106: Insumos Diversos | C106: Valor (R$)
A107: A | B107: Uniformes
A108: B | B108: Materiais
A109: C | B109: Equipamentos
A110: D | B110: Outros (especificar)
A111: Total
A114: Módulo 6 - Custos Indiretos, Tributos e Lucro
A116: 6 | B116: Custos Indiretos, Tributos e Lucro | C116: Percentual (%) | D116: Valor (R$)
A117: A | B117: Custos Indiretos
A118: B | B118: Lucro
A119: C | B119: Tributos
B120: C.1. Tributos Federais (especificar)
B121: C.2. Tributos Estaduais (especificar)
B122: C.3. Tributos Municipais (especificar)
A123: Total
A126: 2. QUADRO-RESUMO DO CUSTO POR EMPREGADO
B128: Mão de obra vinculada à execução contratual (valor por empregado) | C128: Valor (R$)
A129: A | B129: Módulo 1 - Composição da Remuneração
A130: B | B130: Módulo 2 - Encargos e Benefícios Anuais, Mensais e Diários
A131: C | B131: Módulo 3 - Provisão para Rescisão
A132: D | B132: Módulo 4 - Custo de Reposição do Profissional Ausente
A133: E | B133: Módulo 5 - Insumos Diversos
A134: Subtotal (A + B +C+ D+E)
A135: F | B135: Módulo 6 – Custos Indiretos, Tributos e Lucro
A136: Valor Total por Empregado
